Workbook

Sheet Cows, heifers, & bulls
B2: Oklahoma Ranch Calculator--OK Ranch Calc Oklahoma State University Developed by Keith Lusby, Animal Science and Odell Walker, Agricultural Economics Update by Eric A. DeVuyst and Damona Doye, Agricultural Economics David Lalman, Animal Science
M4: This program is designed to operate in MS Excel 2007. Earlier versions of Excel WILL generate errors!
B5: type scenario description here | H5: 2017-05-01
B8: Cow, heifer, and bull inventory
D9: units | E9: Mature cows | G9: 1st Calf heifers | I9: Yearling heifers | K9: Bulls | M9: Totals
B10: Raised | D10: hd | E10: 80 | G10: 20 | I10: 25 | K10: 0 | M10: XXX
B11: Base value | D11: $/hd | E11: 1125 | G11: 1000 | I11: 850 | K11: 0 | M11: XXX
B12: Purchased | D12: hd | E12: 0 | G12: 0 | I12: 0 | K12: 3 | M12: XXX
B13: % financed | D13: % | E13: 0 | G13: 0 | I13: 0 | K13: 0.5 | M13: XXX
B14: Death loss | D14: % | E14: 0.01 | G14: 0.01 | I14: 0.01 | K14: 0.01 | M14: XXX
B15: Borrowed | D15: $/hd | E15: 0 | G15: 0 | I15: 0 | K15: 875 | M15: XXX
B16: Wean percentage | D16: % | E16: 0.86 | G16: 0.82 | I16: XXX | K16: XXX | M16: =IF(E10+G10+E12+G12>0,ROUND(((E10+E12)*E16+(G10+G12)*G16)/(E12+G12+E10+G10)*100,0)&"% avg") -> 85% avg
B17: Calves weaned | D17: hd | E17: =(E10+E12)*E16 -> 68.8 | G17: =(G10+G12)*G16 -> 16.4 | I17: XXX | K17: XXX | M17: =SUM(E17:H17) -> 85.2
B18: Steers weaned | D18: hd | E18: 34 | G18: 8 | I18: XXX | K18: XXX | M18: =SUM(E18:H18) -> 42
B19: Heifers weaned | D19: hd | E19: =E17-E18 -> 34.8 | G19: =G17-G18 -> 8.4 | I19: XXX | K19: XXX | M19: =SUM(E19:H19) -> 43.2
B20: Heifers retained | D20: hd | E20: 19 | G20: 6 | I20: XXX | K20: XXX | M20: =SUM(E20:H20) -> 25
B21: Initial principal | D21: $ | E21: =E15*E12 -> 0 | G21: =G15*G12 -> 0 | I21: =I15*I12 -> 0 | K21: =K15*K12 -> 2625 | M21: XXX
B22: Interest rate | D22: % | E22: 0.06 | G22: 0.06 | I22: 0.06 | K22: 0.06 | M22: XXX
B23: Loan term | D23: years | E23: 4 | G23: 5 | I23: 5 | K23: 3 | M23: XXX
B24: Years remaining on loan | E24: 3 | G24: 5 | I24: 4 | K24: 2 | M24: XXX
B25: Payment frequency | E25: Annually | G25: Annually | I25: Annually | K25: Annually | M25: XXX
B26: Total annual payments | E26: 0 | G26: 0 | I26: 0 | K26: 982.0382586 | M26: =SUM(E26:K26) -> 982.0382586
B27: Total principal, current year | E27: 0 | G27: 0 | I27: 0 | K27: 874.0105541 | M27: =SUM(E27:K27) -> 874.0105541
B28: Total interest, current year | E28: 0 | G28: 0 | I28: 0 | K28: 108.0277045 | M28: =SUM(E28:K28) -> 108.0277045
B30: Breeding stock purchases
E32: Head | G32: $/head | I32: Total $ | K32: Percent financed | M32: Interest rate | O32: Month purchased | Q32: Downpayment | S32: 1st year interest
B33: Mature cows | E33: 0 | G33: 1125 | I33: =E33*G33 -> 0 | K33: 0 | O33: 1 | Q33: =I33*(1-K33) -> 0 | S33: =I33*K33*M33*(13-O33)/12 -> 0
B34: 1st calf heifers | E34: 0 | G34: 1000 | I34: =E34*G34 -> 0 | K34: 0 | O34: 2 | Q34: =I34*(1-K34) -> 0 | S34: =I34*K34*M34*(13-O34)/12 -> 0
B35: Yearling heifers | E35: 0 | G35: 850 | I35: =E35*G35 -> 0 | K35: 0 | O35: 9 | Q35: 0 | S35: 0
B36: Bulls | E36: 1 | G36: 2850 | I36: =E36*G36 -> 2850 | K36: 0.5 | M36: 0.06 | O36: 4 | Q36: 1425 | S36: 64.125
B37: Total purchases | E37: =SUM(E33:F36) -> 1 | I37: =SUM(I33:J36) -> 2850 | Q37: 2850 | S37: 0
B39: Cull sales
E41: # sold | F41: Average weight (lbs) | H41: Average cost basis/base value | J41: Sale price ($/cwt) | L41: $/head | N41: Total
B42: Cull cows and 1st calf heifers | E42: 24 | F42: 1150 | H42: 1000 | J42: 82 | L42: =J42*F42/100 -> 943 | N42: =E42*L42 -> 22632
B43: Cull yearling heifers | E43: 0 | F43: 825 | H43: 850 | J43: 162 | L43: =J43*F43/100 -> 1336.5 | N43: =E43*L43 -> 0
B44: Cull bulls | E44: 1 | F44: 1750 | H44: 1300 | J44: 104 | L44: =J44*F44/100 -> 1820 | N44: =E44*L44 -> 1820
B45: Total sales | E45: =SUM(E42:E44) -> 25 | F45: =SUMPRODUCT(E42:E44,F42:F44) -> 29350 | N45: =SUM(N42:O44) -> 24452
B47: Inventory
E49: Mature cows & 1st calf heifers | G49: Yearling heifers | I49: Bulls
B50: Beginning inventory | E50: =E10+G10+E12+G12 -> 100 | G50: =I10+G12 -> 25 | I50: =K10+K12 -> 3
B51: Transferred in | E51: =I10+I12 -> 25 | G51: =E20+G20 -> 25
B52: Transferred out | G52: =-E51 -> -25
B53: Purchases | E53: =+E33+E34 -> 0 | G53: =E35 -> 0 | I53: =E36 -> 1
B54: Sales | E54: =-E42 -> -24 | G54: =-E43 -> 0 | I54: =-E44 -> -1
B55: Death loss | E55: =-(E10*E14+G10*G14) -> -1 | G55: =-(I10+I12)*I14 -> -0.25 | I55: =-(K10+K12)*K14 -> -0.03
B56: Ending inventory | E56: =SUM(E50:F55) -> 100 | G56: =SUM(G50:H55) -> 24.75 | I56: =SUM(I50:J55) -> 2.97

Sheet Calves
B2: Stocker inventory
E4: Purchased | G4: Purchased | I4: Retained | K4: Retained | M4: Totals and averages
D5: units | E5: Stocker 1 | G5: Stocker 2 | I5: stocker steers | K5: stocker heifers
B6: Number | D6: hd | E6: 0 | G6: 0 | I6: =calcs!E86+calcs!E87 -> 0 | K6: =calcs!E88+calcs!E89 -> -3.108624469e-15 | M6: =SUM(E6:L6) -> -3.108624469e-15
B7: % financed | D7: % | E7: 1 | G7: 0 | I7: xxx | K7: xxx
B8: Initial weight | D8: lbs | E8: 525 | G8: 525 | I8: 525 | K8: 500
B9: Initial price | D9: $/cwt | E9: 190 | G9: 190 | I9: 190 | K9: 190
B10: ADG | D10: lb/day | E10: 2 | G10: 2.2 | I10: 2.4 | K10: 2.2
B11: Death loss | D11: % | E11: 0.02 | G11: 0.01 | I11: 0.01 | K11: 0.01
B12: Days owned | D12: days | E12: 135 | G12: 135 | I12: 180 | K12: 180
B13: Borrowed | D13: $/hd | E13: =IF(E6>0,E8*E9/100*E7,0) -> 0 | G13: =IF(G6>0,G8*G9/100*G7,0) -> 0 | I13: xxx | K13: xxx | M13: =IF(SUM(E6:H6)>0,"$"&ROUND(SUMPRODUCT(E6:H6,E13:H13)/SUM(E6:H6),0)&" avg","$0") -> $0
B14: Initial principal | D14: $ | E14: =E13*E6 -> 0 | G14: =G13*G6 -> 0 | I14: xxx | K14: xxx | M14: =SUM(E14:H14) -> 0
B15: Interest rate | D15: % | E15: 0.0625 | G15: 0.0625 | I15: xxx | K15: xxx | M15: =IF(M14>0,ROUND(SUMPRODUCT(E14:G14,E15:G15)/M14 *100,2) & "% avg",0) -> 0
B16: Loan term | E16: =E12 & " days" -> 135 days | G16: =G12 & " days" -> 135 days | I16: xxx | K16: xxx
B17: Years remaining on note | I17: xxx | K17: xxx
B18: Payment frequency | E18: Annually | G18: Annually | I18: xxx | K18: xxx
B19: Total annual payments | E19: =E20+E21 -> 0 | G19: =G20+G21 -> 0 | I19: xxx | K19: xxx | M19: =SUM(E19:H19) -> 0
B20: Total principal current yr | E20: =E14 -> 0 | G20: =G14 -> 0 | I20: xxx | K20: xxx | M20: =SUM(E20:H20) -> 0
B21: Total interest current year | E21: =E14*E15/365*E12 -> 0 | G21: =G14*G15/365*G12 -> 0 | I21: xxx | K21: xxx | M21: =SUM(E21:H21) -> 0
B23: Calf and stocker sales
B25: Calf sales | C25: From cows | E25: Head sold | G25: Weight (lbs) | I25: Sale price ($/cwt) | K25: $/head | M25: Total
C26: steer calves | E26: =calcs!D86 -> 34 | G26: 525 | I26: 190 | K26: =I26*G26/100 -> 997.5 | M26: =E26*K26 -> 33915
C27: heifer calves | E27: =calcs!D88 -> 15.8 | G27: 500 | I27: 170 | K27: =I27*G27/100 -> 850 | M27: =E27*K27 -> 13430
C28: From 1st calf heifers
C29: steer calves | E29: =calcs!D87 -> 8 | G29: 475 | I29: 195 | K29: =I29*G29/100 -> 926.25 | M29: =E29*K29 -> 7410
C30: heifer calves | E30: =calcs!D89 -> 2.4 | G30: 450 | I30: 175 | K30: =I30*G30/100 -> 787.5 | M30: =E30*K30 -> 1890
B31: Stocker sales | C31: Retained calves
C32: =I5 -> stocker steers | E32: =I6*(1-I11) -> 0 | G32: =I8+I10*I12 -> 957 | I32: 150 | K32: =I32*G32/100 -> 1435.5 | M32: =E32*K32 -> 0
C33: =K5 -> stocker heifers | E33: =K6*(1-K11) -> -3.077538224e-15 | G33: =K8+K10*K12 -> 896 | I33: 155 | K33: =I33*G33/100 -> 1388.8 | M33: =E33*K33 -> -4.274085086e-12
C34: Purchased calves
C35: =E5 -> Stocker 1 | E35: =E6*(1-E11) -> 0 | G35: =E8+E10*E12 -> 795 | I35: 0 | K35: =I35*G35/100 -> 0 | M35: =E35*K35 -> 0
C36: =G5 -> Stocker 2 | E36: =G6*(1-G11) -> 0 | G36: =G8+G10*G12 -> 822 | I36: 0 | K36: =I36*G36/100 -> 0 | M36: =E36*K36 -> 0
C37: Totals | E37: =SUM(E26:F36) -> 60.2 | G37: =SUMPRODUCT(G26:H36,E26:F36) -> 30630 | I37: ="$" & ROUND(M37/G37,2)*100 & " avg" -> $185 avg | K37: ="$" &ROUND(M37/E37,0) & " avg" -> $941 avg | M37: =SUM(M26:N36) -> 56645

Sheet Pastures
B2: Owned pasture information
B4: Types | D4: units | E4: Native | G4: Bermuda | I4: Wheat | K4: Native- purch | M4: Fescue | O4: TOTALS
B5: Acres | E5: 1000 | G5: 200 | I5: 0 | K5: 0 | M5: 0 | O5: =SUM(E5:M5) -> 1200
B6: % financed | D6: % | E6: 0 | G6: 0.7 | I6: 0.5 | K6: 0.5 | M6: 0.5 | O6: =ROUND(SUMPRODUCT(E6:N6,E5:N5)/SUM(E5:N5)*100,0) & "% avg" -> 12% avg
B7: Purchase price | D7: $/acre | E7: 1100 | G7: 1500 | I7: 2000 | K7: 1100 | M7: 1700 | O7: ="$" & ROUND(SUMPRODUCT(E7:N7,E5:N5)/SUM(E5:N5),0) & " avg" -> $1167 avg
B8: Financed per acre | D8: $/acre | E8: =E7*E6 -> 0 | G8: =G7*G6 -> 1050 | I8: =I7*I6 -> 1000 | K8: =K7*K6 -> 550 | M8: =M7*M6 -> 850 | O8: =SUM(E8:M8) -> 3450
B9: Taxes | D9: $/acre | E9: 2 | G9: 2 | I9: 2 | K9: 2 | M9: 2 | O9: ="$" & ROUND(SUMPRODUCT(E9:M9,E5:M5)/O5,2) & " avg" -> $2 avg
B10: Original loan principal | D10: $ | E10: =E6*E5*E7 -> 0 | G10: =G6*G5*G7 -> 210000 | I10: =I6*I5*I7 -> 0 | K10: =K6*K5*K7 -> 0 | M10: =M6*M5*M7 -> 0 | O10: =SUM(E10:N10) -> 210000
B11: Interest rate | D11: % | E11: 0.055 | G11: 0.0575 | I11: 0.05 | K11: 0.055 | M11: 0.05 | O11: =ROUND((E11*E8*E5+G11*G8*G5+I5*I8*I11+K5*K8*K11+M5*M8*M11)/SUMPRODUCT(E5:N5,E8:N8),2)*100 & "% avg" -> 6% avg
B12: Payment frequency | E12: Annually | G12: Annually | I12: Annually | K12: Annually | M12: Annually
B13: Loan term | D13: years | E13: 20 | G13: 30 | I13: 15 | K13: 20 | M13: 15
B14: Years remaining on loan | E14: 10 | G14: 20 | I14: 10 | K14: 5 | M14: 10
B15: Total annual payment | D15: $/year | E15: 0 | G15: 14850.41011 | I15: 0 | K15: 0 | M15: 0 | O15: =SUM(E15:M15) -> 14850.41011
B16: Total principal payment | D16: $/year | E16: 0 | G16: 4854.348217 | I16: 0 | K16: 0 | M16: 0 | O16: =SUM(E16:M16) -> 4854.348217
B17: Total interest payment | D17: $/year | E17: 0 | G17: 9996.061892 | I17: 0 | K17: 0 | M17: 0 | O17: =SUM(E17:M17) -> 9996.061892
B19: Rented pasture information
B21: Types | D21: units | E21: =IF(E4<>"",E4,"") -> Native | G21: =IF(G4<>"",G4,"") -> Bermuda | I21: =IF(I4<>"",I4,"") -> Wheat | K21: =IF(K4<>"",K4,"") -> Native- purch | M21: =IF(M4<>"",M4,"") -> Fescue | O21: TOTALS
B22: Acres | E22: 0 | G22: 0 | I22: 0 | K22: 0 | M22: 0 | O22: =SUM(E22:M22) -> 0
B23: Annual rent per acre | D23: $/acre | E23: 15 | G23: 25 | I23: 40 | K23: 15 | M23: 35 | O23: =IF(O22>0,"$" & ROUND(SUMPRODUCT(E23:M23,E22:M22)/O22,2) & " avg",0) -> 0
B24: Total rent | D24: $/year | E24: =E23*E22 -> 0 | G24: =G23*G22 -> 0 | I24: =I23*I22 -> 0 | K24: =K23*K22 -> 0 | M24: =M23*M22 -> 0 | O24: =SUM(E24:M24) -> 0
B26: Pasture allocation--head grazed on each pasture type (optional)
B28: Pasture | E28: =E40 -> Mature cows | G28: =G40 -> 1st Calf heifers | I28: =I40 -> Yearling heifers | K28: ="Purchased " &Calves!E5 -> Purchased Stocker 1 | M28: ="Purchased " &Calves!G5 -> Purchased Stocker 2 | O28: ="Retained " &Calves!I5 -> Retained stocker steers | Q28: ="Retained " &Calves!K5 -> Retained stocker heifers
D29: (head) | E29: =" ("& 'Cows, heifers, & bulls'!E12 + 'Cows, heifers, & bulls'!E10&")" -> (80) | G29: =" ("& 'Cows, heifers, & bulls'!G12 + 'Cows, heifers, & bulls'!G10&")" -> (20) | I29: =" ("& 'Cows, heifers, & bulls'!I12 + 'Cows, heifers, & bulls'!I10&")" -> (25) | K29: =" (" &Calves!E6 &")" -> (0) | M29: =" (" &Calves!G6 &")" -> (0) | O29: =" (" &Calves!I6 &")" -> (0) | Q29: =" (" &Calves!K6 &")" -> (-3.10862446895044E-15)
B30: =E21 -> Native
B31: =G21 -> Bermuda
B32: =I21 -> Wheat
B33: =K21 -> Native- purch
B34: =M21 -> Fescue
B35: Head remaining to allocate | E35: ='Cows, heifers, & bulls'!E12+'Cows, heifers, & bulls'!E10-SUM(E30:F34) -> 80 | G35: ='Cows, heifers, & bulls'!G12+'Cows, heifers, & bulls'!G10-SUM(G30:H34) -> 20 | I35: ='Cows, heifers, & bulls'!I12+'Cows, heifers, & bulls'!I10-SUM(I30:J34) -> 25 | K35: =Calves!E6-SUM(K30:L34) -> 0 | M35: =Calves!G6-SUM(M30:N34) -> 0 | O35: =Calves!I6-SUM(O30:P34) -> 0 | Q35: =Calves!K6-SUM(Q30:R34) -> -3.108624469e-15
B38: Pasture allocation--acres per head (optional)
B40: Pasture Types | D40: total acres | E40: ='Cows, heifers, & bulls'!E9:F9 -> Mature cows | G40: ='Cows, heifers, & bulls'!G9:H9 -> 1st Calf heifers | I40: ='Cows, heifers, & bulls'!I9:J9 -> Yearling heifers | K40: ="Purchased " &Calves!E5 -> Purchased Stocker 1 | M40: ="Purchased " &Calves!G5 -> Purchased Stocker 2 | O40: ="Retained " &Calves!I5 -> Retained stocker steers | Q40: ="Retained " &Calves!K5 -> Retained stocker heifers | S40: Excess/deficit acres
B42: =B30 -> Native | D42: =E22+E5 -> 1000 | S42: =D42-SUMPRODUCT(E42:Q42,E30:Q30) -> 1000
B43: =B31 -> Bermuda | D43: =G22+G5 -> 200 | S43: =D43-SUMPRODUCT(E43:Q43,E31:Q31) -> 200
B44: =B32 -> Wheat | D44: =I22+I5 -> 0 | S44: =D44-SUMPRODUCT(E44:Q44,E32:Q32) -> 0
B45: =B33 -> Native- purch | D45: =K22+K5 -> 0 | S45: =D45-SUMPRODUCT(E45:Q45,E33:Q33) -> 0
B46: =B34 -> Fescue | D46: =M22+M5 -> 0 | S46: =D46-SUMPRODUCT(E46:Q46,E34:Q34) -> 0
B48: Pasture cash expense
B50: Cash expense | D50: units | E50: =IF(E42>0,E4,"") ->  | G50: =IF(G5>0,G21,"") -> Bermuda | I50: =IF(I4<>"",I4 & " owned","") -> Wheat owned | K50: =IF(I21<>"",I21 & " rented","") -> Wheat rented | M50: =K21 -> Native- purch | O50: =M21 -> Fescue | Q50: TOTALS
E51: ="(" & D42 & " acres)" -> (1000 acres) | G51: ="(" & D43 & " acres)" -> (200 acres) | I51: ="(" & I5 & " acres)" -> (0 acres) | K51: ="(" &I22 & " acres)" -> (0 acres) | M51: ="(" &D45 & " acres)" -> (0 acres) | O51: ="(" &D46 & " acres)" -> (0 acres)
B52: Fertilizer and lime | D52: $/acre | E52: 0 | G52: 60 | I52: 13 | K52: 13 | M52: 0 | O52: 60 | Q52: =E52*$D$42+G52*$D$43+I52*$I$5+K52*$I$22+M52*$D$45+O52*$D$46 -> 12000
B53: Tillage | D53: $/acre | G53: 0 | Q53: =E53*$D$42+G53*$D$43+I53*$I$5+K53*$I$22+M53*$D$45+O53*$D$46 -> 0
B54: Seeding | D54: $/acre | G54: 0 | I54: 8 | K54: 8 | Q54: 0
B55: Spraying, burning, other | D55: $/acre | E55: 4 | G55: 4 | M55: 4 | O55: 4 | Q55: 4800
B56: Total per acre | D56: $/acre | E56: =SUM(E52:F55) -> 4 | G56: =SUM(G52:H55) -> 64 | I56: =SUM(I52:J55) -> 21 | K56: =SUM(K52:L55) -> 21 | M56: =SUM(M52:N55) -> 4 | O56: =SUM(O52:P55) -> 64 | Q56: ="$" & ROUND(Q57/SUM(D42:D46),2) & " avg" -> $14 avg
B57: Total for farm | D57: $ | E57: =E56*D42 -> 4000 | G57: =G56*D43 -> 12800 | I57: =I56*I5 -> 0 | K57: =K56*I22 -> 0 | M57: =M56*D45 -> 0 | O57: =O56*D46 -> 0 | Q57: =SUM(E57:P57) -> 16800
B59: Pasture rent and overhead allocation
B61: Enterprise | E61: =E50 ->  | G61: =G50 -> Bermuda | I61: =I50 -> Wheat owned | K61: =K50 -> Wheat rented | M61: =M50 -> Native- purch | O61: =O50 -> Fescue
E62: =E51 -> (1000 acres) | G62: =G51 -> (200 acres) | I62: =I51 -> (0 acres) | K62: =K51 -> (0 acres) | M62: =M51 -> (0 acres) | O62: =O51 -> (0 acres)
B63: Cow-calf | E63: 1 | G63: 1 | I63: 0 | K63: 0 | M63: 1 | O63: 0
B64: Stocker | E64: 0 | G64: 0 | I64: 1 | K64: 1 | M64: 0 | O64: 0
B65: Crops and other | E65: =1-SUM(E63:F64) -> 0 | G65: =1-SUM(G63:H64) -> 0 | I65: =1-SUM(I63:J64) -> 0 | K65: =1-SUM(K63:L64) -> 0 | M65: =1-SUM(M63:N64) -> 0 | O65: =1-SUM(O63:P64) -> 1
B66: Total | E66: =SUM(E63:F65) -> 1 | G66: =SUM(G63:H65) -> 1 | I66: =SUM(I63:J65) -> 1 | K66: =SUM(K63:L65) -> 1 | M66: =SUM(M63:N65) -> 1 | O66: =SUM(O63:P65) -> 1

Sheet Feed, vet, & breeding costs
B2: Hay and feed costs per head
F3: Mature cows | H3: 1st calf Heifers | J3: Yearling heifers (replacements) | L3: =Pastures!K40 -> Purchased Stocker 1 | N3: =Pastures!M40 -> Purchased Stocker 2 | P3: =Pastures!O40 -> Retained stocker steers | R3: =Pastures!Q40 -> Retained stocker heifers | T3: Bulls
F4: =Pastures!E29 -> (80) | H4: =Pastures!G29 -> (20) | J4: =Pastures!I29 -> (25) | L4: =Pastures!K29 -> (0) | N4: =Pastures!M29 -> (0) | P4: =Pastures!O29 -> (0) | R4: =Pastures!Q29 -> (-3.10862446895044E-15) | T4: ="("&'Cows, heifers, & bulls'!K10+'Cows, heifers, & bulls'!K12&")" -> (3)
B5: Source | D5: units | F5: lb/day/hd | G5: days fed | H5: lb/day/hd | I5: days fed | J5: lb/day/hd | K5: days fed | L5: lb/day/hd | M5: days fed | N5: lb/day/hd | O5: days fed | P5: lb/day/hd | Q5: days fed | R5: lb/day/hd | S5: days fed | T5: lb/day/hd | U5: days fed
E6: $/unit
B7: cubes 38% | D7: tons | E7: 390 | F7: 2 | G7: 60 | H7: 2 | I7: 60 | J7: 0 | K7: 0 | L7: 0 | M7: 0 | N7: 0 | O7: 0 | P7: 0 | Q7: 0 | R7: 0 | S7: 0 | T7: 0 | U7: 0
B8: cubes 20% | D8: tons | E8: 266 | F8: 4 | G8: 60 | H8: 4 | I8: 60 | J8: 6 | K8: 120 | M8: 0
B9: prairie hay | D9: tons | E9: 65 | F9: 12 | G9: 120 | H9: 12 | I9: 120 | J9: 10 | K9: 120 | L9: 0 | M9: 135 | O9: 135 | P9: 0 | Q9: 135 | R9: 0 | S9: 135 | T9: 18 | U9: 120
B10: bermuda hay | D10: tons | E10: 75 | F10: 0 | G10: 40 | H10: 0 | I10: 120 | J10: 0 | K10: 120 | L10: 0 | M10: 0 | P10: 0 | Q10: 0 | T10: 0 | U10: 0
J13: 0 | K13: 0
B14: salt/minerals | D14: lbs | E14: 0.054 | F14: 0.25 | G14: 365 | H14: 0.25 | I14: 365 | J14: 0.25 | K14: 365 | L14: 0.02 | M14: 135 | N14: 0.25 | O14: 135 | P14: 0.25 | Q14: 135 | R14: 0.25 | S14: 135 | T14: 0.25 | U14: 365
B15: Total feed cost per head | F15: 107.0475 | H15: 107.0475 | J15: 139.6875 | L15: 0.1458 | N15: 1.8225 | P15: 1.8225 | R15: 1.8225 | T15: 75.1275
B16: Total herd feed cost | F16: 8563.8 | H16: 2140.95 | J16: 3492.1875 | L16: 0 | N16: 0 | P16: 0 | R16: -5.665468095e-15 | T16: 225.3825 | V16: Total Feed
B17: Feed cost for: | F17: Cows and heifers | J17: =SUM(F16:K16) -> 14196.9375 | L17: Purchased stockers | N17: =L16+N16 -> 0 | P17: Retained stockers | R17: =SUM(P16:S16) -> -5.665468095e-15 | T17: Bulls | U17: =T16 -> 225.3825 | V17: =SUM(F16:T16) -> 14422.32
B19: Veterinary and miscellaneous expense
B21: Cost | E21: units | F21: Mature cows | H21: 1st Calf heifers | J21: Yearling heifers | L21: =L3 -> Purchased Stocker 1 | N21: =N3 -> Purchased Stocker 2 | P21: =P3 -> Retained stocker steers | R21: =R3 -> Retained stocker heifers | T21: =T3 -> Bulls
B22: Deworm, fly control | E22: $/hd | F22: 4 | H22: 4 | J22: 3.5 | N22: 0 | R22: 0 | T22: 8
B23: Vaccines, vet, drugs | E23: $/hd | F23: 4 | H23: 4 | J23: 4 | T23: 3
B24: Transport | E24: $/hd | F24: 8 | H24: 5 | J24: 5 | T24: 8
B25: Marketing | E25: $/hd | F25: 6 | H25: 6 | J25: 6 | T25: 6
B26: Property tax | E26: $/hd
B27: Fuel, lube, repairs | E27: $/hd
B28: Other | E28: $/hd | L28: 0
B29: Total per head | E29: $hd | F29: =SUM(F22:G28) -> 22 | H29: =SUM(H22:I28) -> 19 | J29: =SUM(J22:K28) -> 18.5 | L29: =SUM(L22:M28) -> 0 | N29: =SUM(N22:O28) -> 0 | P29: =SUM(P22:Q28) -> 0 | R29: =SUM(R22:S28) -> 0 | T29: =SUM(T22:U28) -> 25 | V29: Total Vet & Misc
B30: Total herd cost | E30: $hd | F30: =SUM(F22:G28)*('Cows, heifers, & bulls'!E12+'Cows, heifers, & bulls'!E10) -> 1760 | H30: =SUM(H22:I28)*('Cows, heifers, & bulls'!G12+'Cows, heifers, & bulls'!G10) -> 380 | J30: =SUM(J22:K28)*('Cows, heifers, & bulls'!I12+'Cows, heifers, & bulls'!I10) -> 462.5 | L30: =SUM(L22:M28)*Calves!E6 -> 0 | N30: =SUM(N22:O28)*Calves!G6 -> 0 | P30: =SUM(P22:Q28)*Calves!I6 -> 0 | R30: =SUM(R22:S28)*Calves!K6 -> 0 | T30: =T29*('Cows, heifers, & bulls'!K10+'Cows, heifers, & bulls'!K12) -> 75 | V30: =SUM(F30:U30) -> 2677.5

Sheet Other revenue
B2: Other sources of revenue
B4: Description | F4: Units | G4: Number | H4: Price | I4: Revenue
B5: Hunting lease | F5: acres | G5: 500 | H5: 6 | I5: =G5*H5 -> 3000
B6: Semen sales | F6: straws | G6: 0 | H6: 20 | I6: =G6*H6 -> 0
B7: Breeding certificates | F7: certs | G7: 0 | H7: 25 | I7: 0
B8: Custom baling | F8: bales | G8: 0 | H8: 20 | I8: 0
B9: other--type over | I9: 0
B10: other--type over | I10: 0
B11: other--type over | I11: 0
B12: other--type over | I12: =G12*H12 -> 0
B13: other--type over | I13: 0
B14: Total other revenue | I14: =SUM(I5:I13) -> 3000

Sheet Overhead & interest
B2: Machinery, equipment and facilities
D4: Units | E4: Machinery and equipment | H4: Working facilities, fences, buildings
B6: Purchase price | D6: $ | E6: 57500 | H6: 49000
B7: % financed | D7: % | E7: 0.5 | H7: 0.25
B8: Useful life | D8: years | E8: 10 | H8: 25
B9: Salvage value | D9: $ | E9: 5000 | H9: 2500
B10: Annual costs
B11: Repairs & maintenance | D11: $/yr | E11: 850 | H11: 550
B12: Taxes | D12: $/yr | E12: 200 | H12: 0
B13: Insurance | D13: $/yr | E13: 150 | H13: 0
B14: Fuel, lube, utilities | D14: $/yr | E14: 2000 | H14: 0
B15: Depreciation | D15: $/yr | E15: =IF(E8>0,(E6-E9)/E8,0) -> 5250 | H15: =IF(H8>0,(H6-H9)/H8,0) -> 1860
B17: Original loan principal | D17: $ | E17: =E6*E7 -> 28750 | H17: =H6*H7 -> 12250
B19: Interest rate | D19: % | E19: 0.06 | H19: 0.06
B20: Loan term | D20: years | E20: 5 | H20: 5
B21: Years remaining on loan | E21: 3 | H21: 3
B22: Payment frequency | E22: Quarterly | H22: Annually
B23: Total Payments | D23: $ | E23: 6698.259626 | H23: 2908.105905
B24: Total Principal | D24: $ | E24: 5729.658005 | H24: 2441.701795
B25: Total Interest | D25: $ | E25: 968.6016204 | H25: 466.4041101
B26: Opportunity cost on investment:
B27: Interest on average investment | D27: 0.03 | E27: =(E6+E9)/2*$D$27 -> 937.5 | H27: =(H6+H9)/2*$D$27 -> 772.5
B29: Labor and overhead allocation
E31: Units | F31: Cow herd | I31: Stockers | L31: total
B32: Hired labor | E32: $/yr | F32: 0 | I32: 0 | L32: =I32+F32 -> 0
B33: Value of family and own labor | E33: $/yr | F33: 15000 | I33: 0 | L33: =I33+F33 -> 15000
B34: Miscellaneous expense | E34: $/yr | F34: 0 | I34: 0 | L34: =I34+F34 -> 0
B35: Machinery & equipment | E35: % | F35: 1 | I35: 0 | L35: =I35+F35 -> 1
B36: Facilities, fences, buildings | E36: % | F36: 1 | I36: 0 | L36: =I36+F36 -> 1
B38: Operating note information
E40: units | F40: Cow herd | I40: Stockers
B41: Percent financed | E41: % | F41: 0.75 | I41: 1
B42: Months borrowed | E42: months | F42: 9 | I42: 4
B43: Interest rate | E43: % | F43: 0.0625 | I43: 0.0625
B45: Other overhead costs
B47: Noncurrent asset | C47: Origination | D47: # of units | E47: Salvage value ($/head) | G47: Investment ($/unit) | I47: Expected useful life (years) | K47: Depreciation ($) | M47: Insurance ($) | O47: Taxes ($) | Q47: Interest on average investment | S47: Opportunity cost on investment
B48: Mature cows | C48: Raised | D48: ='Cows, heifers, & bulls'!E10 & " head" -> 80 head | E48: 940 | G48: ='Cows, heifers, & bulls'!E11 -> 1125 | I48: XXX | K48: XXX | M48: 700 | O48: 900 | Q48: 0.03 | S48: 2478
B49: Mature cows | C49: Purchased | D49: ='Cows, heifers, & bulls'!E12 & " head" -> 0 head | E49: 940 | G49: 1500 | I49: 8 | K49: 0 | M49: 0 | O49: 0 | Q49: 0.03 | S49: 0
B50: 1st calf heifers | C50: Raised | D50: ='Cows, heifers, & bulls'!G10 & " head" -> 20 head | E50: 940 | G50: ='Cows, heifers, & bulls'!G$11 -> 1000 | I50: XXX | K50: xxx | M50: 200 | O50: 225 | Q50: 0.03 | S50: 582
B51: 1st calf heifers | C51: Purchased | D51: ='Cows, heifers, & bulls'!G12 & " head" -> 0 head | E51: 940 | G51: 1500 | I51: XXX | K51: xxx | M51: 0 | O51: 0 | Q51: 0.03 | S51: 0
B52: Yearling heifers | C52: Raised | D52: ='Cows, heifers, & bulls'!I10& " head" -> 25 head | E52: 875 | G52: ='Cows, heifers, & bulls'!$I$11 -> 850 | I52: XXX | K52: xxx | M52: 190 | O52: 200 | Q52: 0.03 | S52: 646.875
B53: Yearling heifers | C53: Purchased | D53: ='Cows, heifers, & bulls'!I12& " head" -> 0 head | E53: 875 | G53: 800 | I53: XXX | K53: xxx | M53: 0 | O53: 0 | Q53: 0.03 | S53: 0
B54: Retained heifers | C54: Mature cows | D54: =ROUND('Cows, heifers, & bulls'!E20,0) & " head" -> 19 head | E54: xxx | G54: 800 | I54: XXX | K54: xxx | M54: 0 | O54: 0 | Q54: 0.03 | S54: =G54*(13-V54)*Q54/12*'Cows, heifers, & bulls'!E20 -> 494
B55: Retained heifers | C55: 1st calf heifers | D55: =ROUND('Cows, heifers, & bulls'!G20,0) & " head" -> 6 head | E55: xxx | G55: 1750 | I55: XXX | K55: xxx | M55: 0 | O55: 0 | Q55: 0.03 | S55: =G55*(13-V55)*Q55/12*'Cows, heifers, & bulls'!G20 -> 341.25
B56: Raised bulls | C56: Raised | D56: ='Cows, heifers, & bulls'!K10 & " head" -> 0 head | E56: 1825 | G56: 1750 | I56: XXX | K56: xxx | M56: 0 | O56: 0 | Q56: 0.03 | S56: 0
B57: Purchased bulls | C57: Purchased | D57: ='Cows, heifers, & bulls'!K12 & " head" -> 3 head | E57: 1825 | G57: 3000 | I57: 4 | K57: 881.25 | M57: 60 | O57: 85 | Q57: 0.03 | S57: 270
B58: =Pastures!E4 & " pasture" -> Native pasture | D58: =Pastures!E5 & " acres" -> 1000 acres | E58: XXX | G58: =Pastures!E7 -> 1100 | I58: XXX | K58: xxx | M58: XXX | O58: =Pastures!E9*Pastures!E5 -> 2000 | Q58: 0.03 | S58: 33000
B59: =Pastures!G4 & " pasture" -> Bermuda pasture | D59: =Pastures!G5 & " acres" -> 200 acres | E59: XXX | G59: =Pastures!G7 -> 1500 | I59: XXX | K59: XXX | M59: XXX | O59: =Pastures!G9*Pastures!G5 -> 400 | Q59: 0.03 | S59: 9000
B60: =Pastures!I4 & " pasture" -> Wheat pasture | D60: =Pastures!I5 & " acres" -> 0 acres | E60: XXX | G60: =Pastures!I7 -> 2000 | I60: XXX | K60: XXX | M60: XXX | O60: =Pastures!I9*Pastures!I5 -> 0 | Q60: 0.03 | S60: 0
B61: =Pastures!K4 & " pasture" -> Native- purch pasture | D61: =Pastures!K5 & " acres" -> 0 acres | E61: XXX | G61: =Pastures!K7 -> 1100 | I61: XXX | K61: XXX | M61: XXX | O61: =Pastures!K9*Pastures!K5 -> 0 | Q61: 0.03 | S61: 0
B62: =Pastures!M4 & " pasture" -> Fescue pasture | D62: =Pastures!M5 & " acres" -> 0 acres | E62: XXX | G62: =Pastures!M7 -> 1700 | I62: XXX | K62: XXX | M62: XXX | O62: =Pastures!M9*Pastures!M5 -> 0 | Q62: 0.03 | S62: 0
B63: TOTAL | K63: =K49+K57 -> 881.25 | M63: =SUM(M49:N58) -> 450 | O63: =SUM(O48:P62) -> 3810 | S63: 0

Sheet Results
B2: Cow herd cash flow and profitability analysis | K2: Stocker cash flow and profitability analysis
F4: Cash flow | H4: Profitability | O4: Cash flow | Q4: Profitability
B5: Revenue | K5: Revenue
B6: Calf production | F6: =Calves!M26+Calves!M27+Calves!M29+Calves!M30 -> 56645 | H6: =F6+Calves!I6*Calves!I8*Calves!I9/100+Calves!K6*Calves!K8*Calves!K9/100+'Cows, heifers, & bulls'!E20*'Overhead & interest'!G54+'Overhead & interest'!G55*'Cows, heifers, & bulls'!G20 -> 82345 | K6: Purchased stockers | O6: =Calves!M35+Calves!M36 -> 0 | Q6: =O6 -> 0
B7: Cull sales | F7: ='Cows, heifers, & bulls'!N45 -> 24452 | H7: =F7-SUM(calcs!K35:K37) -> 21302 | K7: Retained stockers | O7: =Calves!M32+Calves!M33 -> -4.274085086e-12 | Q7: =O7 -> -4.274085086e-12
B8: Increase in replacement heifer value | F8: xxx | H8: ='Cows, heifers, & bulls'!I10*('Overhead & interest'!G50-'Overhead & interest'!G52)+'Cows, heifers, & bulls'!I12*('Overhead & interest'!G51-'Overhead & interest'!G53) -> 3750 | K8: Total stocker revenue | O8: =O6+O7 -> -4.274085086e-12 | Q8: =Q7+Q6 -> -4.274085086e-12
B9: Total cow herd revenue | F9: =F6+F7 -> 81097 | H9: =SUM(H6:I8) -> 107397 | K9: Expenses
B10: Expenses | K10: Purchased and retained calves | O10: =Calves!E6*Calves!E8*Calves!E9/100+Calves!G6*Calves!G8*Calves!G9/100 -> 0 | Q10: =Calves!E6*Calves!E8*Calves!E9/100+Calves!G6*Calves!G8*Calves!G9/100+Calves!I6*Calves!I8*Calves!I9/100+Calves!K6*Calves!K8*Calves!K9/100 -> -2.953193246e-12
B11: Pasture rent | F11: =SUMPRODUCT(calcs!E5:H5,Pastures!E24:H24)+SUMPRODUCT(Pastures!I24:N24,calcs!K7:P7) -> 0 | H11: =F11 -> 0 | K11: Pasture rent | O11: =SUMPRODUCT(Pastures!E24:H24,calcs!E6:H6)+SUMPRODUCT(calcs!K6:P6,Pastures!I24:N24) -> 0 | Q11: =O11 -> 0
B12: Pasture operating | F12: =SUMPRODUCT(Pastures!E57:P57,Pastures!E63:P63) -> 16800 | H12: 16800 | K12: Pasture operating | O12: =SUMPRODUCT(Pastures!E57:P57,Pastures!E64:P64) -> 0 | Q12: 0
B13: Hay and feed | F13: ='Feed, vet, & breeding costs'!F16+'Feed, vet, & breeding costs'!H16+'Feed, vet, & breeding costs'!J16+'Feed, vet, & breeding costs'!T16 -> 14422.32 | H13: 14422.32 | K13: Hay and feed | O13: =SUM('Feed, vet, & breeding costs'!L16:S16) -> -5.665468095e-15 | Q13: -5.665468095e-15
B14: Veterinary etc. | F14: ='Feed, vet, & breeding costs'!F30+'Feed, vet, & breeding costs'!H30+'Feed, vet, & breeding costs'!J30+'Feed, vet, & breeding costs'!T30 -> 2677.5 | H14: 2677.5 | K14: Veterinary etc. | O14: =SUM('Feed, vet, & breeding costs'!L30:S30) -> 0 | Q14: 0
B15: Cash mach, equip, & facilities | F15: =SUM('Overhead & interest'!E11:G14)*'Overhead & interest'!F35+SUM('Overhead & interest'!H11:J14)*'Overhead & interest'!F36 -> 3750 | H15: 3750 | K15: Cash mach, equip, & facilities exp | O15: =SUM('Overhead & interest'!E11:J14)*'Overhead & interest'!I35 -> 0 | Q15: 0
B16: Hired labor | F16: ='Overhead & interest'!F32 -> 0 | H16: =F16 -> 0 | K16: Hired labor | O16: ='Overhead & interest'!I32 -> 0 | Q16: 0
B17: Miscellaneous | F17: ='Overhead & interest'!F34:H34 -> 0 | H17: =F17 -> 0 | K17: Miscellaneous | O17: ='Overhead & interest'!I34 -> 0 | Q17: 0
B18: Interest on: | K18: Interest on:
B19: Operating | F19: =SUM(F11:G17)*'Overhead & interest'!F41:H41*'Overhead & interest'!F42:H42/12*'Overhead & interest'!F43:H43 -> 1323.626484 | H19: =F19 -> 1323.626484 | K19: Operating | O19: =SUM(O10:P17)*'Overhead & interest'!I41*'Overhead & interest'!I42/12*'Overhead & interest'!I43 -> -1.180305853e-16 | Q19: =O19 -> -1.180305853e-16
B20: Pasture mortgage | F20: =SUMPRODUCT(Pastures!E17:J17,Pastures!E63:J63)+SUMPRODUCT(Pastures!M63:P63,Pastures!K17:N17) -> 9996.061892 | H20: xxx | K20: Pasture mortgage | O20: =SUMPRODUCT(Pastures!E17:J17,Pastures!E64:J64)+SUMPRODUCT(Pastures!M64:P64,Pastures!K17:N17) -> 0 | Q20: xxx
B21: Breeding stock notes | F21: ='Cows, heifers, & bulls'!M28+'Cows, heifers, & bulls'!S37 -> 108.0277045 | H21: xxx | K21: Calf notes | O21: =SUM(Calves!E21:H21) -> 0 | Q21: xxx
B22: Mach, equip and facilities notes | F22: ='Overhead & interest'!E25*'Overhead & interest'!F35+'Overhead & interest'!H25*'Overhead & interest'!F36 -> 1435.005731 | H22: xxx | K22: Mach, equip and facilities notes | O22: ='Overhead & interest'!E25*'Overhead & interest'!I35+'Overhead & interest'!H25*'Overhead & interest'!I36 -> 0 | Q22: xxx
B23: Taxes | F23: =SUMPRODUCT(calcs!U10:V14,calcs!M18:N22)+SUM('Overhead & interest'!O48:P57) -> 1410 | H23: =F23 -> 1410 | K23: Taxes | O23: =SUMPRODUCT(calcs!S10:T14,calcs!M18:N22) -> 0 | Q23: =O23 -> 0
B24: Insurance | F24: =SUM('Overhead & interest'!M48:M57) -> 1150 | H24: =F24 -> 1150 | K24: Depreciation | O24: xxx | Q24: ='Overhead & interest'!E15*'Overhead & interest'!I35+'Overhead & interest'!H15*'Overhead & interest'!I36 -> 0
B25: Depreciation and death loss | F25: xxx | H25: ='Overhead & interest'!K63+calcs!H97+'Overhead & interest'!F35*'Overhead & interest'!E15+'Overhead & interest'!F36*'Overhead & interest'!H15 -> 9302.25 | K25: Opportunity cost on investment | O25: xxx | Q25: ='Overhead & interest'!I35*'Overhead & interest'!E27+'Overhead & interest'!I36*'Overhead & interest'!H27+calcs!E20 -> 0
B26: Opportunity cost on investment | F26: xxx | H26: =SUM('Overhead & interest'!S48:T57)+'Overhead & interest'!F35*'Overhead & interest'!E27+'Overhead & interest'!F36*'Overhead & interest'!H27+calcs!E19+SUMPRODUCT('Cows, heifers, & bulls'!I33:J36,'Cows, heifers, & bulls'!O33:P36)/12*'Overhead & interest'!Q49 -> 48550.625 | K26: Value of unpaid labor | O26: xxx | Q26: ='Overhead & interest'!I33 -> 0
B27: Value of unpaid labor | F27: xxx | H27: ='Overhead & interest'!F33 -> 15000 | K27: Total expenses | O27: =SUM(O10:P17)+SUM(O19:P23) -> -5.78349868e-15 | Q27: =SUM(Q10:R18)+SUM(Q20:Q26)+Q19 -> -2.958976744e-12
B28: Total Expenses | F28: =SUM(F12:G18)+SUM(F20:G25) -> 51748.91533 | H28: =SUM(H11:I18)+SUM(H20:I27)+H19 -> 114386.3215 | K28: Other cash flows
B29: Other cash flows | K29: Principal payments--real estate | O29: =SUMPRODUCT(Pastures!E16:J16,Pastures!E64:J64)+SUMPRODUCT(Pastures!M64:P64,Pastures!K16:N16) -> 0 | Q29: xxx
B30: Breeding livestock purchases | F30: ='Cows, heifers, & bulls'!Q37 -> 2850 | H30: xxx | K30: Principal payments--mach, facilities, etc. | O30: ='Overhead & interest'!I35*'Overhead & interest'!E24+'Overhead & interest'!H24*'Overhead & interest'!I36 -> 0 | Q30: xxx
B31: Principal payments--breeding stock | F31: ='Cows, heifers, & bulls'!M27 -> 874.0105541 | H31: xxx | K31: Net cash flow from stockers | O31: =O8-O27-SUM(O29:P30) -> -4.268301587e-12 | Q31: xxx
B32: Principal payments--real estate | F32: =SUMPRODUCT(Pastures!E16:J16,Pastures!E63:J63)+SUMPRODUCT(Pastures!M63:P63,Pastures!K16:N16) -> 4854.348217 | H32: xxx | K32: Net income | O32: xxx | Q32: =Q8-Q27 -> -1.315108342e-12
B33: Principal payments--mach, facilities, etc. | F33: ='Overhead & interest'!F35*'Overhead & interest'!E24+'Overhead & interest'!F36*'Overhead & interest'!H24 -> 8171.3598 | H33: xxx
B34: Net cash flow from cow herd | F34: =(F9-F28-SUM(F30:G33)) -> 12598.3661 | H34: xxx
B35: Net income | F35: xxx | H35: =H9-H28 -> -6989.321484
G39: Whole farm cash flow and profitability analysis
K41: Cash flow | M41: Profitability
G42: Net cash flow from cow herd | K42: =F34 -> 12598.3661 | M42: xxx
G43: Net cash flow from stockers | K43: =O31 -> -4.268301587e-12 | M43: xxx
G44: Total other revenue | K44: ='Other revenue'!I14 -> 3000 | M44: xxx
G45: Net cash flow--whole farm | K45: =SUM(K42:L44) -> 15598.3661 | M45: xxx
G46: Net income from cow herd | K46: xxx | M46: =H35 -> -6989.321484
G47: Net income from stockers | K47: xxx | M47: =Q32 -> -1.315108342e-12
G48: Total other revenue | K48: xxx | M48: =K44 -> 3000
G49: Net income--whole farm | K49: xxx | M49: =M47+M46+M48 -> -3989.321484

Sheet calcs (hidden)
B2: Use these numbers for allocating ownership costs
B3: Enterprise | E3: =Pastures!E61 ->  | G3: =Pastures!G61 -> Bermuda | I3: =Pastures!I61 -> Wheat owned | K3: =Pastures!K61 -> Wheat rented | M3: =Pastures!M61 -> Native- purch | O3: =Pastures!O61 -> Fescue
E4: =Pastures!E62 -> (1000 acres) | G4: =Pastures!G62 -> (200 acres) | I4: =Pastures!I62 -> (0 acres) | K4: =Pastures!K62 -> (0 acres) | M4: =Pastures!M62 -> (0 acres) | O4: =Pastures!O62 -> (0 acres)
B5: Cow-calf | E5: =Pastures!E63 -> 1 | G5: =Pastures!G63 -> 1 | I5: =Pastures!I63 -> 0 | K5: =Pastures!K63 -> 0 | M5: =Pastures!M63 -> 1 | O5: =Pastures!O63 -> 0
B6: Stocker | E6: =Pastures!E64 -> 0 | G6: =Pastures!G64 -> 0 | I6: =Pastures!I64 -> 1 | K6: =Pastures!K64 -> 1 | M6: =Pastures!M64 -> 0 | O6: =Pastures!O64 -> 0
B7: total | E7: =E5+E6 -> 1 | G7: =G5+G6 -> 1 | I7: =I5+I6 -> 1 | K7: =K5+K6 -> 1 | M7: =M5+M6 -> 1 | O7: =O5+O6 -> 0
B10: Use these number for allocating operating expenses
B11: Enterprise | E11: =E3 ->  | G11: =G3 -> Bermuda | I11: =I3 -> Wheat owned | K11: =K3 -> Wheat rented | M11: =M3 -> Native- purch | O11: =O3 -> Fescue
E12: =E4 -> (1000 acres) | G12: (200 acres) | I12: (0 acres) | K12: (0 acres) | M12: (0 acres) | O12: (0 acres)
B13: Cow-calf | E13: =IF(E$7>0,E5/E$7,0) -> 1 | G13: =IF(G$7>0,G5/G$7,0) -> 1 | I13: =IF(I$7>0,I5/I$7,0) -> 0 | K13: =IF(K$7>0,K5/K$7,0) -> 0 | M13: =IF(M$7>0,M5/M$7,0) -> 1 | O13: =IF(O$7>0,O5/O$7,0) -> 0
B14: Stocker | E14: =IF(E$7>0,E6/E$7,0) -> 0 | G14: =IF(G$7>0,G6/G$7,0) -> 0 | I14: =IF(I$7>0,I6/I$7,0) -> 1 | K14: =IF(K$7>0,K6/K$7,0) -> 1 | M14: =IF(M$7>0,M6/M$7,0) -> 0 | O14: =IF(O$7>0,O6/O$7,0) -> 0
B15: total | E15: 1 | G15: 1 | I15: 1 | K15: 1 | M15: 1 | O15: 0
Q16: total
B17: overhead costs | E17: ='Overhead & interest'!S58 -> 33000 | G17: ='Overhead & interest'!S59 -> 9000 | I17: ='Overhead & interest'!S60 -> 0 | K17: 0 | M17: ='Overhead & interest'!S61 -> 0 | O17: ='Overhead & interest'!S62 -> 0 | Q17: =SUM(E17:P17) -> 42000
B19: cow-calf pasture overhead | E19: =SUMPRODUCT(E5:P5,E17:P17) -> 42000
B20: stocker pasture overhead | E20: =SUMPRODUCT(E6:P6,E17:P17) -> 0
K34: cost basis | L34: 3000 | M34: 35
D35: perc fin | E35: own int | F35: borrow | G35: months | H35: opp cost | J35: cows | K35: ='Cows, heifers, & bulls'!H42 -> 1000 | L35: 1500 | M35: 0
B36: cash cow | C36: =SUM(Results!F11:G17)-Results!F15 -> 33899.82 | D36: ='Overhead & interest'!F41 -> 0.75 | E36: ='Overhead & interest'!F43 -> 0.0625 | F36: ='Overhead & interest'!F43 -> 0.0625 | G36: ='Overhead & interest'!F42 -> 9 | H36: =C36*(1-D36)*E36*G36/12 -> 397.2635156 | J36: bull | K36: ='Cows, heifers, & bulls'!H43 -> 850 | L36: 1750 | M36: 50
B37: mach cash | C37: =Results!F15 -> 3750 | D37: =1-'Overhead & interest'!E7 -> 0.5 | E37: ='Overhead & interest'!F43 -> 0.0625 | F37: ='Overhead & interest'!L43 -> 0 | G37: ='Overhead & interest'!L42 -> 0 | H37: =C37*(1-D37)*E37*G37/12 -> 0 | J37: heifer | K37: ='Cows, heifers, & bulls'!H44 -> 1300 | L37: 1500 | M37: 40
B38: cows | C38: ='Cows, heifers, & bulls'!E12*(L35+K35)/2 -> 0 | D38: =1-'Cows, heifers, & bulls'!E13 -> 1 | E38: =E36 -> 0.0625 | H38: =C38*(1-D38)*E38 -> 0 | L38: 800 | M38: 45
B39: 1st heifers | C39: ='Cows, heifers, & bulls'!G12*(calcs!L37+calcs!K37)/2 -> 0 | D39: =1-'Cows, heifers, & bulls'!G13 -> 1 | E39: =E38 -> 0.0625 | H39: =C39*(1-D39)*E39 -> 0
B40: yearlings | C40: ='Cows, heifers, & bulls'!I12 -> 0 | D40: =1-'Cows, heifers, & bulls'!I13 -> 1 | E40: =E39 -> 0.0625 | H40: =C40*(1-D40)*E40 -> 0
B41: bulls | C41: ='Feed, vet, & breeding costs'!F35*('Feed, vet, & breeding costs'!F36+'Feed, vet, & breeding costs'!F39)/2*'Feed, vet, & breeding costs'!F37+('Feed, vet, & breeding costs'!H36+'Feed, vet, & breeding costs'!H39)/2*'Feed, vet, & breeding costs'!H35*'Feed, vet, & breeding costs'!H37+'Feed, vet, & breeding costs'!J37*'Feed, vet, & breeding costs'!J35*('Feed, vet, & breeding costs'!J36+'Feed, vet, & breeding costs'!J39)/2 -> 0 | D41: 0 | E41: =E40 -> 0.0625 | H41: =C41*(1-D41)*E41 -> 0
F42: land opp | H42: =L25 -> 0
K43: Stockers--steers | M43: Stockers--heifers | O43: Stockers--steers | Q43: Stockers--heifers
K44: =Calves!E6 -> 0 | M44: =Calves!G6 -> 0 | O44: =Calves!I6 -> 0 | Q44: =Calves!K6 -> -3.108624469e-15
K45: =Calves!E7 -> 1 | M45: =Calves!G7 -> 0 | O45: =Calves!I7 -> xxx | Q45: =Calves!K7 -> xxx
K46: =Calves!E8 -> 525 | M46: =Calves!G8 -> 525 | O46: =Calves!I8 -> 525 | Q46: =Calves!K8 -> 500
G47: total | H47: =SUM(H36:H44) -> 397.2635156 | K47: =Calves!E9 -> 190 | M47: =Calves!G9 -> 190 | O47: =Calves!I9 -> 190 | Q47: =Calves!K9 -> 190
K48: 150 | M48: 150 | O48: 150 | Q48: 150
L49: =K44*(1-K45)*K46*K47/100 -> 0 | N49: =M44*(1-M45)*M46*M47/100 -> 0 | P49: =O44*O46*O47/100 -> 0 | R49: =Q44*Q46*Q47/100 -> -2.953193246e-12
F52: land opp | H52: =L26 -> 0
B53: cash stkr | C53: =SUM(Results!O10:P17)-Results!O15 -> -5.665468095e-15 | D53: ='Overhead & interest'!I41 -> 1 | E53: =E41 -> 0.0625 | H53: =C53*(1-D53)*E53 -> 0
B54: steers | C54: =L49+P49 -> 0 | D54: 1 | E54: =E53 -> 0.0625 | G54: =Calves!I12 -> 180 | H54: =L49*(1-D54)*E54*G54/365 -> 0
B55: heifers | C55: =N49+R49 -> -2.953193246e-12 | D55: 1 | E55: =E54 -> 0.0625 | G55: =Calves!K12 -> 180 | H55: =C55*(1-D55)*E55*G55/365 -> 0
B56: mach cash | C56: =Results!O15 -> 0 | D56: ='Overhead & interest'!L41 -> 0 | E56: =E37 -> 0.0625 | H56: =C56*(1-D56)*E56/2 -> 0
G57: total | H57: =SUM(H52:H56) -> 0
B59: operating interest
D60: ='Overhead & interest'!F40 -> Cow herd | E60: ='Overhead & interest'!I40 -> Stockers | F60: ='Overhead & interest'!L40 -> 0 | I60: cash operating expense | L60: cows | M60: intrate | N60: opp equity | O60: stkrs | P60: intrate | Q60: opp equity
B61: ='Overhead & interest'!B41:D41 -> Percent financed | D61: ='Overhead & interest'!F41 -> 0.75 | E61: ='Overhead & interest'!I41 -> 1 | F61: ='Overhead & interest'!L41 -> 0 | I61: =Results!B11 -> Pasture rent | L61: =Results!F11 -> 0 | M61: =$D$63/12*$D$62*(1-$D$61) -> 0.01171875 | N61: =L61*M61 -> 0 | O61: =Results!O11 -> 0 | P61: =(1-$E$61)*$E$62*$E$63/12 -> 0 | Q61: =O61*P61 -> 0
B62: ='Overhead & interest'!B42:D42 -> Months borrowed | D62: ='Overhead & interest'!F42 -> 9 | E62: ='Overhead & interest'!I42 -> 4 | F62: ='Overhead & interest'!L42 -> 0 | I62: =Results!B12 -> Pasture operating | L62: =Results!F12 -> 16800 | M62: =$D$63/12*$D$62*(1-$D$61) -> 0.01171875 | N62: =L62*M62 -> 196.875 | O62: =Results!O12 -> 0 | P62: =(1-$E$61)*$E$62*$E$63/12 -> 0 | Q62: =O62*P62 -> 0
B63: ='Overhead & interest'!B43:D43 -> Interest rate | D63: ='Overhead & interest'!F43 -> 0.0625 | E63: ='Overhead & interest'!I43 -> 0.0625 | F63: ='Overhead & interest'!L43 -> 0 | I63: =Results!B13 -> Hay and feed | L63: =Results!F13 -> 14422.32 | M63: =$D$63/12*$D$62*(1-$D$61) -> 0.01171875 | N63: 169.0115625 | O63: =Results!O12 -> 0 | P63: 0 | Q63: 0
I64: =Results!B14 -> Veterinary etc. | L64: =Results!F14 -> 2677.5 | M64: =$D$63/12*$D$62*(1-$D$61) -> 0.01171875 | N64: 31.37695312 | O64: =Results!O14 -> 0 | P64: 0 | Q64: 0
I65: =Results!#REF! ->  | L65: =Results!#REF! ->  | M65: =$D$63/12*$D$62*(1-$D$61) -> 0.01171875 | P65: 0 | Q65: 0
I66: =Results!B15 -> Cash mach, equip, & facilities | L66: =Results!F15 -> 3750 | M66: =(1-F61)*F62*(F63)/12 -> 0 | N66: 0 | O66: =Results!O15 -> 0 | P66: =M66 -> 0 | Q66: 0
I67: =Results!B16 -> Hired labor | L67: =Results!F16 -> 0 | M67: =$D$63/12*$D$62*(1-$D$61) -> 0.01171875 | N67: 0 | O67: =Results!O16 -> 0 | P67: 0 | Q67: 0
I68: =Results!B17 -> Miscellaneous | L68: =Results!F17 -> 0 | M68: =$D$63/12*$D$62*(1-$D$61) -> 0.01171875 | N68: 0 | O68: =Results!O17 -> 0 | P68: 0 | Q68: 0
N69: =SUM(N61:N68) ->  | Q69: =SUM(Q61:Q68) -> 0
I70: Depreciation
I71: mach | J71: facilities | K71: cows share
B75: principal payments
B76: =Pastures!E4 -> Native | D76: =Pastures!G4 -> Bermuda | F76: =Pastures!I4 -> Wheat | H76: =Pastures!K4 -> Native- purch | J76: =Pastures!M4 -> Fescue
A77: cow perc | B77: =B14 -> Stocker | D77: =D14 -> 0 | F77: =F14 -> 0 | H77: =H14 -> 0 | J77: =J14 -> 0
A78: payments | B78: =Pastures!E16 -> 0 | D78: =Pastures!G16 -> 4854.348217 | F78: =Pastures!I16 -> 0 | H78: =Pastures!K16 -> 0 | J78: =Pastures!M16 -> 0 | L78: =SUMPRODUCT(B77:K77,B78:K78) -> 0
A79: stk perc | B79: =B20 -> stocker pasture overhead | D79: =D20 -> 0 | F79: =F20 -> 0 | H79: =H20 -> 0 | J79: =J20 -> 0 | L79: =SUM(B79:K79) -> 0
A80: tot per | B80: =B77+B79 ->  | D80: =D77+D79 -> 0 | F80: =F77+F79 -> 0 | H80: =H77+H79 -> 0 | J80: =J77+J79 -> 0
A81: cow norm | B81: =IF(B77>0,B80/B77,0) ->  | D81: =IF(D77>0,D80/D77,0) -> 0 | F81: =IF(F77>0,F80/F77,0) -> 0 | H81: =IF(H77>0,H80/H77,0) -> 0 | J81: =IF(J77>0,J80/J77,0) -> 0
A82: stk norm | B82: =IF(B79>0,B80/B79,0) ->  | D82: =IF(D79>0,D80/D79,0) -> 0 | F82: =IF(F79>0,F80/F79,0) -> 0 | H82: =IF(H79>0,H80/H79,0) -> 0 | J82: =IF(J79>0,J80/J79,0) -> 0
E84: stkrs
B85: sex | C85: from | D85: feeders | E85: retained | F85: replacements | M85: January
B86: steers | C86: cows | D86: 34 | E86: 0 | M86: February
B87: steers | C87: heifers | D87: 8 | E87: 0 | M87: March
B88: heifers | C88: cows | D88: 15.8 | E88: -3.552713679e-15 | F88: 19 | M88: April
B89: heifers | C89: heifers | D89: 2.4 | E89: 4.440892099e-16 | F89: 6 | M89: May
M90: June
C91: avg val | E91: avg val | M91: July
B92: death loss | C92: raised | D92: head | E92: purchased | F92: head | G92: deathlose | H92: $ | M92: August
B93: cows | C93: =('Overhead & interest'!E48+'Overhead & interest'!G48)/2 -> 1032.5 | D93: ='Cows, heifers, & bulls'!E10 -> 80 | E93: =('Overhead & interest'!E49+'Overhead & interest'!G49)/2 -> 1220 | F93: ='Cows, heifers, & bulls'!E12 -> 0 | G93: ='Cows, heifers, & bulls'!$E$14 -> 0.01 | H93: =SUMPRODUCT(C93:C96,D93:D96,G93:G96) -> 1235.625 | M93: September
B94: 1st calf | C94: =('Overhead & interest'!E50+'Overhead & interest'!G50)/2 -> 970 | D94: ='Cows, heifers, & bulls'!G10 -> 20 | E94: =('Overhead & interest'!E51+'Overhead & interest'!G51)/2 -> 1220 | F94: ='Cows, heifers, & bulls'!G12 -> 0 | G94: ='Cows, heifers, & bulls'!$G$14 -> 0.01 | H94: =SUMPRODUCT(E93:E96,F93:F96,G93:G96) -> 25.125 | M94: October
B95: heifers | C95: =('Overhead & interest'!E52+'Overhead & interest'!G52)/2 -> 862.5 | D95: ='Cows, heifers, & bulls'!I10 -> 25 | E95: =('Overhead & interest'!E52+'Overhead & interest'!G52)/2 -> 862.5 | F95: ='Cows, heifers, & bulls'!I12 -> 0 | G95: ='Cows, heifers, & bulls'!$I$14 -> 0.01 | H95: =SUMPRODUCT(E94:E97,F94:F97,G94:G97) -> 25.125 | I95: total | M95: November
B96: bulls | C96: =('Overhead & interest'!E53+'Overhead & interest'!G53)/2 -> 837.5 | D96: ='Cows, heifers, & bulls'!K10 -> 0 | E96: =('Overhead & interest'!E53+'Overhead & interest'!G53)/2 -> 837.5 | F96: ='Cows, heifers, & bulls'!K12 -> 3 | G96: ='Cows, heifers, & bulls'!$K$14 -> 0.01 | H96: 25.125 | M96: December
H97: =SUM(H93:H96) -> 1311
